bitfinex/quotes_ETHUSD_20250722
["timestamp","ask_amount","ask_price","bid_price","bid_amount"]
[1753214880117,7.74521034,3681.6,3681.5,0.001]
[1753214880457,8.29521034,3681.6,3681.5,0.001]
[1753214880965,7.74221034,3681.6,3681.5,0.001]
[1753214881165,2.71621034,3681.6,3681.5,0.001]
[1753214881311,5.026,3681.6,3681.5,0.4662]
[1753214881511,8.31932915,3681.6,3681.5,0.001]
[1753214881826,9.17981034,3681.6,3681.5,0.001]
[1753214882043,3.46391034,3681.6,3681.5,0.001]
[1753214882264,9.06602915,3681.6,3681.5,0.001]
[1753214882550,9.17881034,3681.6,3681.5,0.001]
[1753214882859,9.03691034,3681.6,3681.5,0.001]
[1753214883015,23.53691034,3681.6,3681.5,0.001]
[1753214883218,9.03691034,3681.6,3681.5,0.001]
[1753214884028,4.01391034,3681.6,3681.5,0.001]
[1753214884215,2.71621034,3681.6,3681.5,0.001]
[1753214884412,7.76132915,3681.6,3681.5,0.001]
[1753214884733,8.28421034,3681.6,3681.5,0.001]
[1753214885729,3.26621034,3681.6,3681.5,0.001]
[1753214885945,8.30332915,3681.6,3681.5,0.001]
[1753214886158,8.27621034,3681.6,3681.5,0.001]
[1753214886361,8.36923637,3681.6,3681.5,0.001]
[1753214886650,8.36923637,3681.6,3681.5,1e-08]
[1753214886651,9.25683637,3681.6,3681.5,1e-08]
[1753214887217,4.24683637,3681.6,3681.5,1e-08]
[1753214887418,9.27495518,3681.6,3681.5,1e-08]
[1753214887716,9.24383637,3681.6,3681.5,1e-08]
[1753214888956,9.10293637,3681.6,3681.5,1e-08]
[1753214889136,9.00991034,3681.6,3681.5,1e-08]
[1753214889342,9.00091034,3681.6,3681.5,1e-08]
[1753214889858,12.14081034,3681.6,3681.5,1e-08]
[1753214890229,12.23419525,3681.6,3681.5,1e-08]
[1753214890544,3.26680069,3680.8,3680.7,0.001]
[1753214890742,8.2749195,3680.8,3680.7,0.001]
[1753214890943,8.24780069,3680.8,3680.7,0.001]
[1753214891146,8.24580069,3680.8,3680.7,0.001]
[1753214892039,8.44984058,3680.8,3680.7,0.001]
[1753214892660,8.44984058,3680.8,3679.6,0.7819]
[1753214892661,2.71758219,3679.8,3679.6,1.2471]
[1753214892959,7.89984058,3680.8,3679.6,0.7819]
[1753214892960,7.68461284,3679.7,3679.6,0.7819]
[1753214893173,0.1352,3679.6,3679.0,0.7561]
[1753214893466,0.02711881,3679.5,3678.6,0.4652]
[1753214893619,0.7477,3680.0,3678.7,2.71830499]
[1753214893816,0.1352,3678.9,3678.8,3.18347742]
[1753214894022,2.71725856,3680.2,3679.0,2.71812992]
[1753214894264,0.1352,3679.5,3679.4,2.71783442]
[1753214894455,0.1352,3679.5,3678.8,2.71824362]
[1753214894456,0.55,3679.3,3678.5,0.4652]
[1753214894663,0.55,3679.5,3678.5,0.4652]
[1753214894664,2.7181072,3679.1,3678.5,0.4652]
[1753214894962,2.71825599,3678.9,3678.5,0.4652]
[1753214895257,2.71835979,3678.7,3678.5,0.4652]
[1753214895465,5.02811881,3678.6,3678.1,2.7187881]
[1753214895683,5.001,3678.6,3678.2,2.71865798]
[1753214895883,5.001,3678.6,3678.0,0.801]
[1753214896038,5.001,3678.6,3678.0,3.801]
[1753214896243,5.001,3678.6,3678.1,3.18392341]
[1753214896567,5.001,3678.6,3678.2,2.71871427]
[1753214896779,0.94848086,3683.0,3678.8,3.52597769]
[1753214896780,0.20877554,3678.9,3678.8,3.52597769]
[1753214897067,0.20877554,3678.9,3678.8,6.99117769]
[1753214897271,5.19777554,3678.9,3678.8,6.99117769]
[1753214897444,5.19577554,3678.9,3678.8,6.99117769]
[1753214897640,5.19577554,3678.9,3678.8,7.96213196]
[1753214897985,4.987,3678.9,3678.8,7.96213196]
[1753214898787,6.519,3680.1,3678.9,3.0]
[1753214899095,4.978,3680.0,3679.3,2.7178867]
[1753214899379,4.978,3680.0,3679.4,3.1833883]
[1753214899596,6.519,3680.1,3679.5,1.2957]
[1753214899741,2.71683186,3680.8,3680.1,2.71725087]
[1753214899941,2.71683186,3680.8,3679.6,0.4656]
[1753214899942,4.972,3680.7,3680.2,3.18278705]
[1753214900144,4.971,3680.6,3680.3,0.4656]
[1753214900444,4.971,3680.6,3680.4,1.2957]
[1753214900640,0.20736903,3680.7,3680.5,3.18256075]
[1753214900976,9.23735169,3681.5,3680.6,0.4656]
[1753214901288,2.71644184,3681.3,3680.6,3.18252268]
[1753214901489,0.02711881,3681.2,3680.6,3.18252268]
[1753214901646,0.02711881,3681.2,3680.6,0.4656]
[1753214901841,2.74366453,3681.2,3680.4,0.8301]
[1753214902094,2.71671843,3681.0,3680.4,3.8301]
[1753214902305,4.961,3680.9,3680.4,3.8301]
[1753214902445,0.20111106,3681.3,3680.5,0.4656]
[1753214902785,4.961,3681.2,3680.5,3.18255355]
[1753214902961,4.961,3681.2,3680.8,2.71678626]
[1753214903169,6.521,3682.6,3681.0,0.794]
[1753214903377,6.521,3682.6,3681.7,2.71608353]
[1753214903699,4.954,3682.5,3681.9,0.794]
[1753214903998,4.953,3682.4,3682.1,2.71579325]
[1753214904202,6.521,3682.6,3682.3,2.71568411]
[1753214904500,4.951,3682.5,3682.4,0.4656]
[1753214904702,4.951,3682.5,3682.0,0.1352]
[1753214905196,4.951,3682.5,3682.1,2.71583147]
[1753214905498,4.951,3682.5,3682.2,0.4656]
[1753214905698,4.951,3682.5,3682.3,0.4656]
[1753214906002,4.951,3682.5,3682.4,0.4656]
[1753214906501,4.951,3682.5,3682.0,0.1352]
[1753214906697,2.71614778,3681.7,3680.6,0.4656]
[1753214906899,7.71122416,3681.6,3680.6,0.4656]
[1753214907096,0.1352,3681.3,3680.8,3.0]
[1753214907298,0.1352,3681.3,3680.7,0.1352]
[1753214907507,4.992,3681.2,3680.9,0.4656]
[1753214907811,7.70852728,3681.2,3681.0,0.4656]
[1753214907964,4.992,3681.2,3681.0,0.4656]
[1753214909167,4.992,3681.2,3680.8,3.0]
[1753214909370,0.1352,3681.3,3681.1,2.71657928]
[1753214909708,2.71650848,3681.2,3680.5,0.4656]
[1753214909863,0.002,3681.6,3680.6,0.02716948]
[1753214910062,4.993,3681.5,3680.7,1.2477]
[1753214910290,4.993,3681.5,3680.4,2.71708656]
[1753214910291,4.993,3681.5,3681.4,6.4984579]
[1753214910490,0.002,3681.6,3681.5,5.71628412]
[1753214910700,0.002,3681.6,3681.5,3.4656]
[1753214912022,0.002,3681.6,3681.5,6.18188412]
[1753214912208,7.04915288,3681.6,3680.3,0.7891]
[1753214912374,5.03911881,3681.5,3680.4,0.4656]
[1753214912577,5.012,3681.4,3680.6,2.71688078]
[1753214912798,7.72836042,3681.4,3680.7,0.49276874]
[1753214912968,0.002,3681.6,3680.8,0.027168]
[1753214913173,0.002,3681.6,3681.2,2.71649285]
[1753214913374,5.011,3681.6,3681.3,0.4656]
[1753214913674,5.011,3681.6,3681.4,0.4656]
[1753214913875,5.011,3681.6,3681.3,2.71636842]
[1753214914111,0.02711881,3681.5,3680.3,0.7883]
[1753214914352,5.05411881,3681.4,3680.4,0.4656]
[1753214914609,2.71673828,3680.9,3680.4,0.4656]
[1753214914768,5.027,3680.8,3680.4,0.4656]
[1753214916029,7.74381268,3680.8,3680.4,0.4656]
[1753214916313,5.027,3680.8,3680.4,0.4656]
[1753214918332,7.74381061,3680.8,3680.4,0.4656]
[1753214918497,5.027,3680.8,3680.4,0.4656]
[1753214919312,7.74381307,3680.8,3680.3,0.7883]
[1753214919501,0.02711881,3680.7,3680.3,0.7883]
[1753214919705,0.16231881,3680.7,3680.3,0.7883]
[1753214920006,0.1352,3680.5,3680.3,0.7883]
[1753214920195,0.1352,3680.5,3680.4,3.4656]
[1753214920647,0.1352,3680.5,3680.4,6.18269596]
[1753214920805,0.1352,3681.2,3681.0,2.71660525]
[1753214921143,0.1352,3681.4,3681.2,0.8171]
[1753214921512,5.1152,3681.4,3681.2,0.8171]
[1753214921712,4.98,3681.4,3681.3,0.4656]
[1753214922139,0.1372,3681.6,3681.5,5.71628412]
[1753214922343,0.002,3681.6,3681.5,6.18188412]
[1753214923165,0.002,3681.6,3681.5,3.4656]
[1753214923471,0.002,3681.6,3681.5,6.18188412]
[1753214923963,0.002,3681.6,3681.5,3.0]
[1753214925239,4.958,3681.6,3681.5,3.0]
[1753214925871,4.958,3681.6,3681.5,3.4656]
[1753214926176,4.955,3681.6,3681.5,3.0]
[1753214926873,0.002,3681.6,3681.5,5.71628412]
[1753214927084,0.002,3681.6,3681.5,7.2420645]
[1753214927806,0.002,3681.6,3681.5,8.0330645]
[1753214928684,0.002,3681.6,3681.5,7.10808412]
[1753214929584,0.002,3681.6,3681.5,3.0]
[1753214930297,7.65721034,3681.6,3681.5,3.0]
[1753214930848,4.941,3681.6,3681.5,3.0]
[1753214931044,4.941,3681.6,3680.9,0.9262]
[1753214931045,7.68432915,3681.6,3680.9,0.9262]
[1753214931245,0.1352,3681.4,3680.9,0.1352]
[1753214931547,2.71680069,3680.8,3680.7,0.001]
[1753214931747,7.6819195,3680.8,3680.7,0.001]
[1753214932010,7.65480069,3680.8,3680.7,0.001]
[1753214932211,4.938,3680.8,3680.7,0.001]
[1753214932676,0.7477,3681.1,3680.7,0.001]
[1753214932873,0.1352,3680.9,3680.7,0.8321]
[1753214933073,4.938,3680.8,3680.7,1.2826]
[1753214933270,0.1352,3680.9,3680.7,3.9994745]
[1753214933614,0.1352,3681.2,3681.1,5.71657541]
[1753214933812,4.938,3681.3,3681.2,2.71650548]
[1753214934182,4.938,3681.3,3681.2,0.4505]
[1753214934381,4.938,3681.4,3681.2,0.4505]
[1753214935518,0.1372,3681.6,3681.2,0.4505]
[1753214935879,4.938,3681.5,3681.3,2.71643169]
[1753214936078,4.938,3681.5,3681.2,3.16698769]
[1753214936284,4.938,3681.5,3681.3,2.71642997]
[1753214937039,0.1372,3681.6,3681.4,2.71634823]
[1753214937208,4.938,3681.4,3681.2,0.4505]
[1753214937601,4.938,3681.4,3681.2,3.16695357]
[1753214938245,4.938,3681.4,3681.3,2.71643169]
[1753214938746,0.1372,3681.6,3681.3,5.71643169]
[1753214938911,0.1372,3681.6,3681.4,2.71631136]
[1753214938912,4.938,3681.5,3681.4,2.71631136]
[1753214939104,4.938,3681.5,3681.4,3.16681136]
[1753214939726,0.1372,3681.6,3681.5,2.71628412]
[1753214939978,0.002,3681.6,3681.5,7.83786706]
[1753214940128,0.002,3681.6,3681.5,7.81070422]
[1753214946473,0.002,3682.0,3681.9,2.71598902]
[1753214946672,0.002,3682.0,3681.9,6.49358902]
[1753214946873,0.002,3682.0,3681.9,8.63289248]
[1753214947086,1e-08,3682.0,3681.9,9.31809248]
[1753214948750,1e-08,3682.0,3681.9,14.25209248]
[1753214950431,1e-08,3682.0,3681.9,8.76809248]
[1753214950662,1e-08,3682.0,3681.9,14.25109248]
[1753214953596,0.002,3682.8,3682.6,0.55]
[1753214953892,0.002,3682.8,3682.7,6.85044736]
[1753214954074,0.002,3682.8,3682.7,11.91664736]
[1753214954270,0.002,3682.8,3682.7,12.36714736]
[1753214955955,0.002,3682.8,3682.7,12.36614736]
[1753214956155,0.002,3682.8,3682.7,6.65909902]
[1753214956377,0.002,3682.8,3682.7,11.58909902]
[1753214956690,0.002,3682.8,3682.7,12.03959902]
[1753214958279,0.002,3683.2,3683.1,2.71510412]
[1753214958468,0.002,3683.2,3683.1,10.67025516]
[1753214958662,0.002,3683.2,3683.1,12.47862848]
[1753214958874,0.002,3683.2,3683.1,12.61382848]
[1753214959556,0.002,3683.2,3683.1,12.16202848]
[1753214959764,0.002,3683.2,3683.1,12.61382848]
[1753214959957,0.002,3683.2,3683.1,13.38722848]
[1753214961761,0.002,3683.2,3683.1,13.93722848]
[1753214962295,0.002,3683.2,3683.1,8.45922848]
[1753214962511,0.002,3683.2,3683.1,10.77630412]
[1753214963500,0.002,3683.2,3683.1,12.02090412]
[1753214963664,0.002,3683.5,3683.4,5.71488298]
[1753214963994,0.002,3683.5,3683.4,10.63988298]
[1753214964297,0.002,3683.5,3683.4,12.52005837]
[1753214964469,0.002,3683.5,3683.4,10.77508298]
[1753214964997,0.002,3683.5,3683.4,10.77408298]
[1753214965164,0.002,3683.5,3683.4,11.22588298]
[1753214967704,0.002,3683.5,3683.4,5.85008298]
[1753214967907,0.002,3683.5,3683.4,10.77208298]
[1753214969419,0.002,3683.5,3683.4,12.24524789]
[1753214969798,0.002,3683.5,3683.4,3.1352]
[1753214970000,0.002,3683.5,3683.4,10.77108298]
[1753214970336,0.002,3683.5,3683.4,8.0562]
[1753214970925,0.002,3683.5,3683.4,0.1352]
[1753214971126,1.2153,3683.5,3683.2,0.1352]
[1753214971298,0.7497,3683.5,3683.0,7.919]
[1753214971501,0.7497,3683.5,3683.2,2.71502156]
[1753214971807,0.7497,3683.5,3683.4,3.0]
[1753214972004,0.7497,3683.5,3683.3,3.0]
[1753214972197,0.7497,3683.5,3683.2,3.0]
[1753214972397,0.7497,3683.5,3683.2,2.7150087]
[1753214972600,0.002,3683.5,3683.4,5.71488298]
[1753214975241,0.002,3683.5,3683.4,5.85008298]
[1753214975407,0.002,3683.5,3683.4,7.27756793]
[1753214975594,0.002,3683.5,3683.4,5.85008298]
[1753214976510,0.002,3683.5,3683.4,11.21788298]
[1753214977205,1e-08,3683.5,3683.4,20.49499495]
[1753214977363,1e-08,3683.5,3683.4,12.44798298]
[1753214977525,1e-08,3683.5,3683.4,16.10798298]
[1753214977710,0.002,3683.9,3683.8,3.26458819]
[1753214977711,1e-08,3683.9,3683.8,3.26458819]
[1753214977911,1e-08,3683.9,3683.8,12.02203407]
[1753214978157,1e-08,3684.3,3684.2,7.07959346]
[1753214978325,1e-08,3684.3,3684.2,11.99459346]
[1753214978534,1e-08,3684.3,3684.2,11.89539346]
[1753214978748,1e-08,3684.3,3684.2,13.62782259]
[1753214979264,1e-08,3684.3,3684.2,14.17782259]
[1753214980060,1e-08,3684.3,3684.2,8.26202259]
[1753214980222,1e-08,3684.3,3684.2,13.17502259]
[1753214980423,1e-08,3684.3,3684.2,13.62682259]
[1753214981065,1e-08,3684.3,3684.2,14.17682259]
[1753214981260,1e-08,3684.3,3684.2,23.09043456]
[1753214981557,1e-08,3684.3,3684.2,14.17682259]
[1753214981764,1e-08,3684.3,3684.2,14.17582259]
[1753214982523,1e-08,3684.3,3684.2,14.17482259]
[1753214983064,1e-08,3684.3,3684.2,9.26382259]
[1753214983228,1e-08,3684.3,3684.2,8.71382259]
[1753214983424,1e-08,3684.3,3684.2,8.26202259]
[1753214983629,1e-08,3684.3,3684.2,13.17202259]
[1753214984369,1e-08,3684.3,3684.2,13.62382259]
[1753214985742,1e-08,3684.3,3684.2,8.71382259]
[1753214985974,1e-08,3684.3,3684.2,14.17182259]
[1753214986277,1e-08,3684.3,3684.2,23.08543456]
[1753214987261,0.002,3684.7,3684.6,7.0854988]
[1753214987262,1e-08,3684.7,3684.6,7.0854988]
[1753214987465,1e-08,3684.7,3684.6,13.54287912]
[1753214987667,1e-08,3684.7,3684.6,13.98997912]
[1753214987882,1e-08,3684.7,3684.6,14.12517912]
[1753214988493,0.5733,3686.8,3685.7,4.08468881]
[1753214988647,1.1858,3686.9,3685.7,12.69661708]
[1753214988987,1.1858,3686.9,3685.7,13.2507852]
[1753214989842,1e-08,3685.8,3685.7,13.2507852]
[1753214992343,1e-08,3685.8,3685.7,13.2477852]
[1753214994749,1e-08,3685.8,3685.7,13.2457852]
[1753214995382,1e-08,3685.8,3685.7,13.2447852]
[1753214997156,1e-08,3685.8,3685.7,8.3467852]
[1753214997356,1e-08,3685.8,3685.7,13.2427852]
[1753215003159,1e-08,3686.6,3686.5,3.26260002]
[1753215003367,1e-08,3686.6,3686.5,12.39868602]
[1753215003571,1e-08,3686.6,3686.5,6.93256002]
[1753215003789,1e-08,3686.6,3686.5,11.06306002]
[1753215004102,1e-08,3686.6,3686.5,11.06206002]
[1753215004307,1e-08,3686.6,3686.5,11.61206002]
[1753215004458,1e-08,3686.6,3686.5,6.17406002]
[1753215004663,1e-08,3686.6,3686.5,0.1352]
[1753215004968,0.43810001,3686.6,3686.5,0.1352]
[1753215005389,1e-08,3686.6,3686.5,2.87492602]
[1753215006701,1e-08,3686.6,3686.5,2.84780002]
[1753215006897,0.43810001,3686.6,3686.5,2.84780002]
[1753215007262,0.46521882,3686.6,3684.9,0.8099]
[1753215007460,0.46521882,3686.6,3684.4,2.854]
[1753215007461,0.7477,3686.4,3684.2,2.71423096]
[1753215007687,0.8829,3685.9,3685.3,0.1352]
[1753215007892,0.4381,3685.8,3685.3,2.71344002]
[1753215008107,0.4381,3685.8,3685.0,2.7137042]
[1753215008108,0.4381,3685.8,3684.9,7.59775778]
[1753215008269,0.4381,3685.8,3685.7,3.0]
[1753215008497,0.4381,3685.8,3685.5,3.1352]
[1753215008698,0.4381,3685.8,3685.7,2.71318881]
[1753215008910,0.7477,3685.9,3685.4,2.71340967]
[1753215009187,0.7477,3685.9,3685.8,5.84831519]
[1753215009388,0.7477,3685.9,3685.8,3.1352]
[1753215009604,0.7477,3685.9,3685.8,5.84831519]
[1753215010511,0.4381,3686.2,3686.0,2.71295913]
[1753215010710,0.7477,3686.3,3686.2,5.71282079]
[1753215010915,0.7477,3686.3,3686.2,3.0]
[1753215011320,0.7477,3686.3,3686.2,5.71282079]
[1753215011514,0.43810001,3686.6,3686.4,2.7126028]
[1753215011715,0.43810001,3686.6,3686.1,0.1352]
[1753215011917,1e-08,3686.6,3686.5,5.84780002]
[1753215012328,1e-08,3686.6,3686.5,10.72780002]
[1753215013548,1e-08,3686.6,3686.5,11.72490002]
[1753215015309,1e-08,3686.6,3686.5,12.52530002]
[1753215017711,1e-08,3687.4,3687.3,7.08841149]
[1753215017912,1e-08,3687.4,3687.3,13.83382369]
[1753215018115,1e-08,3687.4,3687.3,13.41802369]
[1753215018321,1e-08,3687.4,3687.3,12.59162369]
[1753215018521,1e-08,3687.4,3687.3,7.71862369]
[1753215018723,1e-08,3687.4,3687.3,11.72231149]
[1753215019899,1e-08,3687.4,3687.3,12.48091149]
[1753215020301,1e-08,3687.4,3686.7,2.71241163]
[1753215020500,1e-08,3687.4,3686.8,4.89812379]
[1753215020744,1e-08,3687.4,3687.3,3.0]
[1753215021040,1e-08,3687.4,3687.3,7.87]
[1753215021344,1e-08,3687.4,3687.3,10.58201149]
[1753215021534,1e-08,3687.4,3686.5,0.001]
[1753215021844,0.4727,3687.3,3687.0,2.71222113]
[1753215022054,0.4727,3687.2,3687.1,3.0]
[1753215022342,1e-08,3687.4,3687.2,3.0]
[1753215022551,1e-08,3687.4,3687.3,2.71201149]
[1753215022708,1e-08,3687.4,3687.3,7.58001149]
[1753215022902,1e-08,3687.4,3687.3,10.58001149]
[1753215023544,1e-08,3687.4,3687.3,5.71201149]
[1753215024046,0.47270001,3687.4,3687.3,7.866]
[1753215024411,0.47270001,3687.4,3687.3,3.0]
[1753215024645,1.22040001,3687.4,3687.3,3.0]
[1753215024853,1.22040001,3687.4,3686.9,4.866]
[1753215025011,1.22040001,3687.4,3687.0,3.0]
[1753215025012,0.74770001,3687.4,3687.0,3.0]
[1753215025215,0.4727,3687.3,3687.0,3.0]
[1753215025423,0.4727,3687.2,3687.0,3.0]
[1753215025627,0.4727,3687.1,3687.0,3.0]
[1753215026239,0.4727,3687.1,3687.0,5.71223216]
[1753215027547,0.4727,3687.1,3686.2,3.55]
[1753215027718,0.4727,3687.1,3686.1,2.71288692]
[1753215027719,0.4727,3687.1,3686.8,2.71230991]
[1753215027917,0.74770001,3687.4,3686.8,2.71230991]
[1753215028118,0.74770001,3687.4,3687.0,3.0]
[1753215028324,0.74770001,3687.4,3686.9,3.0]
[1753215028542,0.4727,3687.3,3686.9,3.0]
[1753215028753,0.4727,3687.2,3686.9,2.71230447]
[1753215029056,1.2204,3687.1,3686.8,3.0]
[1753215029539,0.4727,3687.0,3686.8,3.0]
[1753215029715,0.4727,3687.0,3686.9,2.71230573]
[1753215030254,1e-08,3687.4,3687.1,3.0]
[1753215030462,1e-08,3687.4,3687.1,2.71213541]
[1753215030660,1e-08,3687.4,3687.1,2.71213485]
[1753215030855,1e-08,3687.4,3687.3,0.1352]
[1753215031085,1e-08,3687.4,3687.3,3.1352]
[1753215031219,1e-08,3687.4,3687.3,3.73028178]
[1753215031420,1e-08,3687.4,3687.3,3.70316167]
[1753215031978,0.47270001,3687.4,3687.3,0.1352]
[1753215032517,1.22040001,3687.4,3687.3,0.1352]
[1753215033164,1.22040001,3687.4,3686.9,2.71230568]
[1753215033330,1.22040001,3687.4,3687.1,0.1352]
[1753215033861,0.74770001,3687.4,3687.3,3.0]
[1753215035063,0.74770001,3687.4,3687.1,5.84734012]
[1753215035219,0.4727,3687.3,3687.1,0.1352]
[1753215036575,0.4727,3687.3,3687.2,3.0]
[1753215037427,0.4727,3687.3,3687.1,3.1352]
[1753215037762,0.4727,3687.3,3687.1,0.1352]
[1753215038066,0.4727,3687.2,3687.1,0.1352]
[1753215038968,0.4727,3687.2,3687.1,3.0]
[1753215039149,0.4727,3687.2,3687.0,3.0]
[1753215039750,0.74770001,3687.4,3686.5,3.001]
[1753215039952,0.74770001,3687.4,3687.1,0.1352]
[1753215040146,0.4727,3687.3,3687.1,0.1352]
[1753215040548,0.4727,3687.2,3687.1,0.1352]
[1753215041092,0.4727,3687.2,3686.7,3.0]
[1753215041246,0.4727,3687.1,3686.7,0.1352]
[1753215041447,0.4727,3687.1,3686.9,3.0]
[1753215041748,0.4727,3687.1,3686.7,2.84763204]
[1753215042054,0.4727,3687.0,3686.7,2.84763204]
[1753215042258,0.002,3687.2,3686.7,0.1352]
[1753215042581,0.4727,3686.9,3686.7,0.1352]
[1753215042791,0.4727,3686.9,3686.5,2.71357797]
[1753215042792,0.4727,3686.8,3686.5,0.001]
[1753215043285,2.84748281,3687.0,3686.5,0.001]
[1753215043286,0.4727,3686.7,3686.5,0.001]
[1753215043650,0.16231881,3687.0,3686.5,0.001]
[1753215043849,0.4727,3686.6,3686.5,0.001]
[1753215044497,3.93292644,3686.6,3686.5,0.001]
[1753215044678,1.2204,3686.6,3686.5,0.001]
[1753215045285,0.7477,3686.6,3686.5,0.001]
[1753215045472,0.8829,3687.1,3686.5,0.67884092]
[1753215045671,4.843,3687.0,3686.7,3.0]
[1753215046284,4.843,3687.0,3686.6,3.0]
[1753215046489,4.843,3687.0,3686.5,3.1362]
[1753215046656,0.4727,3686.9,3686.5,2.8487898]
[1753215046858,0.4727,3686.8,3686.5,3.1362]
[1753215047101,0.4727,3686.7,3686.5,0.1362]
[1753215047593,4.843,3687.0,3686.5,0.1362]
[1753215047803,1.3397,3687.1,3686.7,3.0]
[1753215048005,4.84,3686.9,3686.6,2.71252644]
[1753215048168,4.84,3686.9,3686.8,2.71237929]
[1753215048363,5.5877,3687.1,3686.8,2.71237929]
[1753215048967,5.5877,3687.1,3686.7,2.84763151]
[1753215049170,5.5877,3687.1,3686.7,0.1352]
[1753215049372,6.0445,3687.1,3686.8,3.0]
[1753215049816,6.0445,3687.1,3686.7,2.84765101]
[1753215049817,6.0445,3687.1,3686.7,3.1352]
[1753215049999,6.0445,3687.1,3686.7,0.1352]
[1753215050298,0.4568,3687.0,3686.7,0.1352]
[1753215050474,4.838,3686.9,3686.8,2.71231303]
[1753215050676,0.7477,3687.1,3686.9,3.0]
[1753215050860,4.837,3687.0,3686.9,3.0]
[1753215051494,4.837,3687.0,3686.8,3.0]
[1753215051695,4.837,3687.0,3686.7,0.1352]
[1753215052199,4.836,3686.9,3686.7,3.1352]
[1753215052779,0.7477,3687.1,3686.7,5.84762512]
[1753215052977,4.834,3687.0,3686.9,2.71225014]
[1753215053177,0.002,3687.2,3687.1,5.7121586]
[1753215053359,0.002,3687.2,3687.1,6.6265586]
[1753215053578,0.002,3687.2,3687.1,7.0599586]
[1753215053780,0.002,3687.2,3687.1,8.79181661]
[1753215055302,0.002,3687.2,3687.1,9.34181661]
[1753215056426,0.002,3687.2,3687.1,8.79181661]
[1753215056717,0.002,3687.2,3687.1,8.35841661]
[1753215057016,0.002,3687.2,3687.1,7.57921661]
[1753215057521,0.002,3687.2,3687.1,2.8473586]
[1753215057821,0.002,3687.2,3687.1,2.87448018]
[1753215058996,0.002,3687.2,3687.1,2.8473586]
[1753215060828,0.002,3687.2,3687.1,2.87448018]
[1753215061146,0.002,3687.2,3687.1,3.30788018]
[1753215061426,0.002,3687.2,3687.1,4.28490877]
[1753215063681,0.002,3687.2,3687.1,6.82438719]
[1753215064316,0.002,3687.2,3687.1,7.25778719]
[1753215065295,0.002,3687.2,3687.1,6.82438719]
[1753215065702,0.002,3687.2,3687.1,7.25778719]
[1753215066438,0.002,3687.2,3687.1,7.12258719]
[1753215066637,0.002,3687.2,3687.1,7.67258719]
[1753215067733,0.002,3687.2,3687.1,7.12258719]
[1753215067897,0.002,3687.2,3687.1,6.68918719]
[1753215069334,0.002,3687.2,3687.1,7.12258719]
[1753215074738,0.002,3687.2,3687.1,6.68918719]
[1753215075040,0.002,3687.2,3687.1,11.49518719]
[1753215075638,0.002,3687.2,3687.1,5.7121586]
[1753215075842,0.002,3687.2,3687.1,10.5161586]
[1753215076211,0.002,3687.2,3687.1,10.6513586]
[1753215079744,0.002,3687.2,3687.1,11.1091586]
[1753215080448,0.1352,3688.5,3687.1,11.1091586]
[1753215080449,0.7477,3688.7,3688.0,3.0]
[1753215080675,0.7477,3688.7,3688.6,2.71105568]
[1753215080978,1.2041,3688.7,3688.6,2.71105568]
[1753215081111,1.2041,3688.7,3688.5,2.71109752]
[1753215081552,1.2041,3688.7,3688.6,2.71105568]
[1753215082383,0.7477,3688.7,3688.6,5.71105568]
[1753215082514,1.2041,3689.0,3688.6,0.1352]
[1753215082714,0.4564,3688.9,3688.6,5.84624782]
[1753215082917,0.4564,3688.8,3688.4,3.0]
[1753215083122,0.8829,3689.0,3688.6,3.0]
[1753215083317,0.4564,3688.7,3688.6,3.0]
[1753215083652,0.7477,3688.6,3687.8,4.794]
[1753215083847,0.5916,3688.5,3687.9,5.71149963]
[1753215084070,0.5916,3688.5,3687.9,2.71157027]
[1753215084260,0.5916,3688.5,3688.0,3.0]
[1753215084472,0.5916,3688.5,3688.0,2.71145103]
[1753215084784,0.4564,3688.4,3688.0,2.71145103]
[1753215084941,0.1352,3688.5,3687.6,4.793]
[1753215084942,0.1352,3688.5,3688.2,3.0]
[1753215085346,0.4564,3688.4,3688.1,0.1352]
[1753215085542,0.4564,3688.3,3687.9,3.0]
[1753215085785,0.4564,3688.2,3687.9,3.0]
[1753215085980,0.16231881,3688.5,3687.9,3.0]
[1753215086187,0.1352,3688.5,3687.9,2.71156794]
[1753215086349,0.4564,3688.4,3687.9,2.71156794]
[1753215086550,0.4564,3688.3,3687.9,2.71156794]
[1753215086951,0.1352,3688.5,3687.9,2.71156794]
[1753215086952,0.1352,3688.5,3687.9,3.0]
[1753215087148,0.4564,3688.2,3687.9,2.71156408]
[1753215087349,0.4564,3688.2,3687.9,3.0]
[1753215087881,0.4564,3688.1,3687.9,3.0]
[1753215088383,0.4564,3688.1,3687.8,0.1352]
[1753215088770,0.7477,3687.9,3687.2,4.786]
[1753215088985,0.7477,3687.9,3687.6,2.71172761]
[1753215089287,0.7497,3688.6,3688.3,3.0]
[1753215089488,0.7497,3688.6,3688.5,2.71112918]
[1753215089851,0.002,3688.6,3688.5,5.71112918]
[1753215090065,0.002,3688.6,3688.5,6.7400421]
[1753215091281,0.00121762,3689.9,3688.9,0.55]
[1753215091449,0.00121762,3689.9,3689.0,0.48490761]
[1753215091776,0.74891762,3689.9,3689.2,3.0]
[1753215091979,0.74891762,3689.9,3689.2,4.08101076]
[1753215091980,0.00121762,3689.9,3689.2,4.08101076]
[1753215092180,0.00121762,3689.9,3689.3,0.02710541]
[1753215092394,0.00121762,3689.9,3689.8,5.71017399]
[1753215093065,0.00121762,3689.9,3689.8,6.16797399]
[1753215093264,0.00121762,3689.9,3689.8,6.71797399]
[1753215093470,0.00121762,3689.9,3689.8,8.55485778]